fUST/lending_fUST_20251002
["ID","MTS","AMOUNT","RATE_DAILY","PERIOD"]
[388753972,1759348264153,-500.0,0.00021369,2]
[388753973,1759348264162,-546.41,0.00021369,2]
[388753974,1759348264172,-500.0,0.00021369,2]
[388753975,1759348264180,-500.0,0.00021369,2]
[388753976,1759348264189,-500.0,0.00021369,2]
[388753977,1759348264199,-500.0,0.00021369,2]
[388753978,1759348264208,-501.68,0.00021369,2]
[388753979,1759348264217,-502.83,0.00021369,2]
[388753980,1759348264227,-500.0,0.00021369,2]
[388753981,1759348264235,-500.0,0.00021369,2]
[388753982,1759348264244,-1277.46,0.00021369,2]
[388753983,1759348264254,-552.96,0.00021369,2]
[388753984,1759348264263,-500.0,0.00021369,2]
[388753985,1759348264272,-500.0,0.00021369,2]
[388753986,1759348264281,-500.0,0.00021369,2]
[388753987,1759348264291,-500.0,0.00021369,2]
[388753988,1759348264301,-500.0,0.00021369,2]
[388753989,1759348264311,-500.0,0.00021369,2]
[388753990,1759348264320,-500.0,0.00021369,2]
[388753991,1759348264329,-2223.37,0.00021369,2]
[388753992,1759348264431,-500.0,0.00021369,2]
[388753993,1759348264441,-500.0,0.00021369,2]
[388753994,1759348264451,-698.72,0.00021369,2]
[388753995,1759348264460,-500.0,0.00021369,2]
[388753996,1759348264469,-813.06,0.00021369,2]
[388753997,1759348264478,-725.57,0.00021369,2]
[388753998,1759348264487,-677.05,0.00021369,2]
[388753999,1759348264497,-500.0,0.00021369,2]
[388754000,1759348264507,-500.0,0.00021369,2]
[388754001,1759348264516,-500.0,0.00021369,2]
[388754002,1759348264525,-2312.62,0.00021369,2]
[388754003,1759348264534,-500.0,0.00021369,2]
[388754004,1759348264545,-500.0,0.00021369,2]
[388754005,1759348264554,-500.0,0.00021369,2]
[388754006,1759348264563,-500.0,0.00021369,2]
[388754007,1759348264572,-500.0,0.00021369,2]
[388754008,1759348264581,-500.0,0.00021369,2]
[388754009,1759348264590,-500.0,0.00021369,2]
[388754010,1759348264599,-791.91,0.00021369,2]
[388754011,1759348264609,-1388.66,0.00021369,2]
[388754012,1759348264618,-1140.33,0.00021369,2]
[388754013,1759348264627,-500.0,0.00021369,2]
[388754014,1759348264636,-500.0,0.00021369,2]
[388754015,1759348264646,-500.0,0.00021369,2]
[388754016,1759348264655,-458.0,0.0002137,2]
[388754017,1759348264664,-151.0,0.0002137,2]
[388754018,1759348264673,-151.0,0.0002137,2]
[388754019,1759348264683,-151.0,0.0002137,2]
[388754020,1759348264691,-151.0,0.0002137,2]
[388754021,1759348264701,-720.0,0.00021404,20]
[388754022,1759348264710,-464.0,0.00021412,2]
[388754023,1759348264719,-792.13072555,0.00021416,2]
[388754024,1759348264728,-2000.0,0.00021416,2]
[388754025,1759348264737,-2000.0,0.00021416,2]
[388754026,1759348264747,-2000.0,0.00021416,2]
[388754027,1759348264756,-464.0,0.00021509,2]
[388754028,1759348264765,-460.0,0.00021536,2]
[388754029,1759348264774,-464.0,0.00021606,2]
[388754030,1759348264784,-2000.0,0.00021616,2]
[388754031,1759348264794,-464.0,0.00021639,2]
[388754032,1759348264804,-500.0,0.00021643,2]
[388754033,1759348264813,-500.0,0.00021643,2]
[388754034,1759348264822,-500.0,0.00021643,2]
[388754035,1759348264831,-500.0,0.00021643,2]
[388754036,1759348264840,-500.0,0.00021643,2]
[388754037,1759348264849,-500.0,0.00021643,2]
[388754038,1759348264859,-500.0,0.00021643,2]
[388754039,1759348264868,-437.09,0.00021643,2]
[388754040,1759348264877,-553.36,0.00021643,2]
[388754041,1759348264887,-614.45,0.00021643,2]
[388754042,1759348264896,-500.0,0.00021643,2]
[388754043,1759348264907,-173.62666989,0.00021643,2]
[388754044,1759348264916,-500.0,0.00021643,2]
[388754045,1759348264925,-500.0,0.00021643,2]
[388754046,1759348264935,-913.55,0.00021643,2]
[388754047,1759348264944,-500.0,0.00021643,2]
[388754048,1759348264953,-500.0,0.00021643,2]
[388754049,1759348264962,-151.0,0.00021643,2]
[388754050,1759348264971,-510.51,0.00021643,2]
[388754051,1759348264980,-151.0,0.00021643,2]
[388754052,1759348264989,-172.04906,0.00021643,2]
[388754053,1759348264999,-500.0,0.00021643,2]
[388754054,1759348265011,-172.04906,0.00021643,2]
[388754055,1759348265020,-500.0,0.00021643,2]
[388754056,1759348265029,-172.04906,0.00021643,2]
[388754057,1759348265038,-172.04906,0.00021643,2]
[388754058,1759348265047,-469.10561006,0.00021643,2]
[388754059,1759348265056,-257.47,0.00021643,2]
[388754060,1759348265065,-183.032811,0.00021643,2]
[388754061,1759348265074,-183.032811,0.00021643,2]
[388754062,1759348265083,-183.032811,0.00021643,2]
[388754063,1759348265093,-500.0,0.00021643,2]
[388754064,1759348265102,-781.46,0.00021643,2]
[388754065,1759348265111,-183.032811,0.00021643,2]
[388754066,1759348265120,-500.0,0.00021643,2]
[388754067,1759348265130,-500.0,0.00021643,2]
[388754068,1759348265139,-834.52,0.00021643,2]
[388754069,1759348265149,-500.0,0.00021643,2]
[388754070,1759348265158,-500.0,0.00021643,2]
[388754071,1759348265167,-500.0,0.00021643,2]
[388754072,1759348265178,-486.0,0.00021643,2]
[388754073,1759348265187,-500.0,0.00021643,2]
[388754074,1759348265197,-500.0,0.00021643,2]
[388754075,1759348265206,-500.0,0.00021643,2]
[388754076,1759348265215,-500.0,0.00021643,2]
[388754077,1759348265224,-500.0,0.00021643,2]
[388754078,1759348265234,-500.0,0.00021643,2]
[388754079,1759348265243,-817.94,0.00021643,2]
[388754080,1759348265252,-500.0,0.00021643,2]
[388754081,1759348265262,-500.0,0.00021643,2]
[388754082,1759348265272,-1197.27,0.00021643,2]
[388754083,1759348265281,-1072.82,0.00021643,2]
[388754084,1759348265291,-1043.95,0.00021643,2]
[388754085,1759348265300,-500.0,0.00021643,2]
[388754086,1759348265310,-500.0,0.00021643,2]
[388754087,1759348265319,-266.07,0.00021643,2]
[388754088,1759348265329,-500.0,0.00021643,2]
[388754089,1759348265339,-503.32431461,0.00021643,2]
[388754090,1759348265348,-996.21,0.00021643,2]
[388754091,1759348265358,-500.0,0.00021643,2]
[388754092,1759348265367,-576.82,0.00021643,2]
[388754093,1759348265377,-231.34,0.00021643,2]
[388754094,1759348265387,-2174.11,0.00021643,2]
[388754095,1759348265396,-500.0,0.00021643,2]
[388754096,1759348265406,-1689.91,0.00021643,2]
[388754097,1759348265415,-500.0,0.00021643,2]
[388754098,1759348265424,-500.0,0.00021643,2]
[388754099,1759348265433,-500.0,0.00021643,2]
[388754100,1759348265442,-500.0,0.00021643,2]
[388754101,1759348265452,-4256.27,0.00021643,2]
[388754102,1759348265462,-500.0,0.00021643,2]
[388754103,1759348265471,-500.0,0.00021643,2]
[388754104,1759348265480,-465.42,0.00021643,2]
[388754105,1759348265489,-500.0,0.00021643,2]
[388754106,1759348265498,-500.0,0.00021643,2]
[388754107,1759348265508,-500.0,0.00021643,2]
[388754108,1759348265517,-500.0,0.00021643,2]
[388754109,1759348265526,-956.54,0.00021643,2]
[388754110,1759348265535,-500.0,0.00021643,2]
[388754111,1759348265545,-500.0,0.00021643,2]
[388754112,1759348265554,-500.0,0.00021643,2]
[388754113,1759348265563,-500.0,0.00021643,2]
[388754114,1759348265572,-1404.42,0.00021643,2]
[388754115,1759348265581,-500.0,0.00021643,2]
[388754116,1759348265591,-872.07,0.00021643,2]
[388754117,1759348265601,-500.0,0.00021643,2]
[388754118,1759348265610,-974.89,0.00021643,2]
[388754119,1759348265619,-732.65,0.00021643,2]
[388754120,1759348265628,-500.0,0.00021643,2]
[388754121,1759348265637,-500.0,0.00021643,2]
[388754122,1759348265647,-812.54,0.00021643,2]
[388754123,1759348265656,-629.04,0.00021643,2]
[388754124,1759348265666,-500.0,0.00021643,2]
[388754125,1759348265675,-500.0,0.00021643,2]
[388754126,1759348265684,-546.41,0.00021643,2]
[388754127,1759348265694,-500.0,0.00021643,2]
[388754128,1759348265704,-460.0,0.00021643,2]
[388754129,1759348265713,-500.0,0.00021643,2]
[388754130,1759348265722,-500.0,0.00021643,2]
[388754131,1759348265731,-501.68,0.00021643,2]
[388754132,1759348265740,-502.83,0.00021643,2]
[388754133,1759348265749,-500.0,0.00021643,2]
[388754134,1759348265758,-500.0,0.00021643,2]
[388754135,1759348265768,-1277.46,0.00021643,2]
[388754136,1759348265777,-552.96,0.00021643,2]
[388754137,1759348265786,-500.0,0.00021643,2]
[388754138,1759348265797,-578.95,0.00021643,2]
[388754139,1759348265807,-500.0,0.00021643,2]
[388754140,1759348265816,-500.0,0.00021643,2]
[388754141,1759348265825,-500.0,0.00021643,2]
[388754142,1759348265834,-500.0,0.00021643,2]
[388754143,1759348265843,-524.27,0.00021643,2]
[388754144,1759348265852,-2223.37,0.00021643,2]
[388754145,1759348265861,-500.0,0.00021643,2]
[388754146,1759348265870,-500.0,0.00021643,2]
[388754147,1759348265879,-698.72,0.00021643,2]
[388754148,1759348265888,-500.0,0.00021643,2]
[388754149,1759348265898,-813.06,0.00021643,2]
[388754150,1759348265907,-725.57,0.00021643,2]
[388754151,1759348265917,-677.05,0.00021643,2]
[388754152,1759348265926,-221.62,0.00021643,2]
[388754153,1759348265935,-500.0,0.00021643,2]
[388754154,1759348265944,-500.0,0.00021643,2]
[388754155,1759348265953,-2312.62,0.00021643,2]
[388754156,1759348265963,-500.0,0.00021643,2]
[388754157,1759348265972,-500.0,0.00021643,2]
[388754158,1759348265981,-500.0,0.00021643,2]
[388754159,1759348265991,-500.0,0.00021643,2]
[388754160,1759348266000,-500.0,0.00021643,2]
[388754161,1759348266012,-500.0,0.00021643,2]
[388754162,1759348266021,-500.0,0.00021643,2]
[388754163,1759348266031,-791.91,0.00021643,2]
[388754164,1759348266041,-1388.66,0.00021643,2]
[388754165,1759348266052,-1140.33,0.00021643,2]
[388754166,1759348266061,-500.0,0.00021643,2]
[388754167,1759348266072,-500.0,0.00021643,2]
[388754168,1759348266090,-150.69,0.00021643,2]
[388754169,1759348266100,-458.0,0.00021644,2]
[388754170,1759348266109,-151.0,0.00021644,2]
[388754171,1759348266119,-151.0,0.00021644,2]
[388754172,1759348266128,-151.0,0.00021644,2]
[388754173,1759348266137,-151.0,0.00021644,2]
[388754174,1759348266147,-1000.0,0.00021653,2]
[388754175,1759348266156,-1000.0,0.00021653,2]
[388754176,1759348266166,-1000.0,0.00021653,2]
[388754177,1759348266175,-1000.0,0.00021653,2]
[388754178,1759348266185,-1000.0,0.00021653,2]
[388754179,1759348266195,-154.988744,0.00021653,2]
[388754180,1759348266204,-1000.0,0.00021653,2]
[388754181,1759348266214,-151.0,0.00021653,2]
[388754182,1759348266224,-500.0,0.00021653,2]
[388754183,1759348266233,-200.0,0.00021653,2]
[388754184,1759348266242,-1000.0,0.00021653,2]
[388754185,1759348266341,-151.0,0.00021653,2]
[388754186,1759348266351,-500.0,0.00021653,2]
[388754187,1759348266360,-500.0,0.00021653,2]
[388754188,1759348266369,-200.0,0.00021653,2]
[388754189,1759348266379,-719.43444371,0.00021653,2]
[388754190,1759348266388,-151.0,0.00021653,2]
[388754191,1759348266397,-500.0,0.00021653,2]
[388754192,1759348266407,-500.0,0.00021653,2]
[388754193,1759348266416,-200.0,0.00021653,2]
[388754194,1759348266425,-151.0,0.00021653,2]
[388754195,1759348266435,-500.0,0.00021653,2]
[388754196,1759348266444,-500.0,0.00021653,2]
[388754197,1759348266453,-151.0,0.00021653,2]
[388754198,1759348266464,-200.0,0.00021653,2]
[388754199,1759348266474,-500.0,0.00021653,2]
[388754200,1759348266483,-500.0,0.00021653,2]
[388754201,1759348266492,-151.0,0.00021653,2]
[388754202,1759348266502,-261.81890834,0.00021653,2]
[388754203,1759348266511,-500.0,0.00021653,2]
[388754204,1759348266519,-500.0,0.00021653,2]
[388754205,1759348266528,-151.0,0.00021653,2]
[388754206,1759348266537,-500.0,0.00021653,2]
[388754207,1759348266548,-500.0,0.00021653,2]
[388754208,1759348266557,-151.0,0.00021653,2]
[388754209,1759348266567,-500.0,0.00021653,2]
[388754210,1759348266576,-500.0,0.00021653,2]
[388754211,1759348266584,-500.0,0.00021653,2]
[388754212,1759348266593,-1000.0,0.00021653,2]
[388754213,1759348266603,-1000.0,0.00021653,2]
[388754214,1759348266612,-1000.0,0.00021653,2]
[388754215,1759348266621,-1000.0,0.00021653,2]
[388754216,1759348266630,-1000.0,0.00021653,2]
[388754217,1759348266639,-1000.0,0.00021653,2]
[388754218,1759348266648,-1000.0,0.00021653,2]
[388754219,1759348266658,-1000.0,0.00021653,2]
[388754220,1759348266667,-1000.0,0.00021653,2]
[388754221,1759348266676,-1000.0,0.00021653,2]
[388754222,1759348266685,-1000.0,0.00021653,2]
[388754223,1759348266694,-643.58203832,0.00021653,2]
[388754224,1759348266703,-464.0,0.0002166,2]
[388754225,1759348266713,-232.55927127,0.00021664,2]
[388754226,1759348266722,-154.450076,0.0002168,2]
[388754227,1759348266731,-464.0,0.00021758,2]
[388754228,1759348266741,-464.0,0.00021758,2]
[388754229,1759348266750,-2020.81292886,0.00021778,2]
[388754230,1759348266759,-464.0,0.00021884,2]
[388754231,1759348266768,-500.0,0.00021907,2]
[388754232,1759348266777,-464.0,0.00021912,2]
[388754233,1759348266787,-3000.0,0.00021912,2]
[388754234,1759348266799,-2537.07226942,0.00021912,2]
[388754235,1759348266808,-3000.0,0.00021912,2]
[388754236,1759348266819,-2507.30042801,0.00021912,2]
[388754237,1759348266828,-500.0,0.00021917,2]
[388754238,1759348266837,-500.0,0.00021917,2]
[388754239,1759348266847,-500.0,0.00021917,2]
[388754240,1759348266856,-500.0,0.00021917,2]
[388754241,1759348266865,-192.87385897,0.00021917,2]
[388754242,1759348266875,-500.0,0.00021917,2]
[388754243,1759348266884,-486.9,0.00021917,2]
[388754244,1759348266893,-500.0,0.00021917,2]
[388754245,1759348266902,-500.0,0.00021917,2]
[388754246,1759348266912,-500.0,0.00021917,2]
[388754247,1759348266921,-420.79,0.00021917,2]
[388754248,1759348266930,-500.0,0.00021917,2]
[388754249,1759348266939,-151.0,0.00021917,2]
[388754250,1759348266949,-151.0,0.00021917,2]
[388754251,1759348266958,-381.9099482,0.00021917,2]
[388754252,1759348266968,-599.5,0.00021917,2]
[388754253,1759348266977,-500.0,0.00021917,2]
[388754254,1759348266987,-151.0,0.00021917,2]
[388754255,1759348266995,-913.55,0.00021917,2]
[388754256,1759348267014,-500.0,0.00021917,2]
[388754257,1759348267023,-500.0,0.00021917,2]
[388754258,1759348267033,-510.51,0.00021917,2]
[388754259,1759348267044,-500.0,0.00021917,2]
[388754260,1759348267054,-500.0,0.00021917,2]
[388754261,1759348267066,-500.0,0.00021917,2]
[388754262,1759348267075,-500.0,0.00021917,2]
[388754263,1759348267084,-500.0,0.00021917,2]
[388754264,1759348267093,-500.0,0.00021917,2]
[388754265,1759348267102,-500.0,0.00021917,2]
[388754266,1759348267112,-500.0,0.00021917,2]
[388754267,1759348267121,-500.0,0.00021917,2]
[388754268,1759348267130,-500.0,0.00021917,2]
[388754269,1759348267140,-500.0,0.00021917,2]
[388754270,1759348267149,-500.0,0.00021917,2]
[388754271,1759348267158,-500.0,0.00021917,2]
[388754272,1759348267167,-500.0,0.00021917,2]
[388754273,1759348267177,-781.46,0.00021917,2]
[388754274,1759348267186,-500.0,0.00021917,2]
[388754275,1759348267196,-500.0,0.00021917,2]
[388754276,1759348267205,-834.52,0.00021917,2]
[388754277,1759348267214,-500.0,0.00021917,2]
[388754278,1759348267224,-500.0,0.00021917,2]
[388754279,1759348267233,-500.0,0.00021917,2]
[388754280,1759348267242,-482.22018183,0.00021917,2]
[388754281,1759348267251,-500.0,0.00021917,2]
[388754282,1759348267261,-500.0,0.00021917,2]
[388754283,1759348267270,-500.0,0.00021917,2]
[388754284,1759348267279,-500.0,0.00021917,2]
[388754285,1759348267287,-500.0,0.00021917,2]
[388754286,1759348267298,-817.94,0.00021917,2]
[388754287,1759348267308,-500.0,0.00021917,2]
[388754288,1759348267317,-500.0,0.00021917,2]
[388754289,1759348267325,-1197.27,0.00021917,2]
[388754290,1759348267334,-1072.82,0.00021917,2]
[388754291,1759348267344,-1043.95,0.00021917,2]
[388754292,1759348267353,-500.0,0.00021917,2]
[388754293,1759348267362,-500.0,0.00021917,2]
[388754294,1759348267372,-573.05,0.00021917,2]
[388754295,1759348267381,-996.21,0.00021917,2]
[388754296,1759348267391,-500.0,0.00021917,2]
[388754297,1759348267400,-576.82,0.00021917,2]
[388754298,1759348267409,-2174.11,0.00021917,2]
[388754299,1759348267419,-500.0,0.00021917,2]
[388754300,1759348267429,-1689.91,0.00021917,2]
[388754301,1759348267438,-500.0,0.00021917,2]
[388754302,1759348267447,-500.0,0.00021917,2]
[388754303,1759348267457,-500.0,0.00021917,2]
[388754304,1759348267467,-500.0,0.00021917,2]
[388754305,1759348267476,-4256.27,0.00021917,2]
[388754306,1759348267485,-500.0,0.00021917,2]
[388754307,1759348267495,-500.0,0.00021917,2]
[388754308,1759348267505,-500.0,0.00021917,2]
[388754309,1759348267514,-500.0,0.00021917,2]
[388754310,1759348267524,-514.98,0.00021917,2]
[388754311,1759348267534,-500.0,0.00021917,2]
[388754312,1759348267543,-956.54,0.00021917,2]
[388754313,1759348267552,-174.81956706,0.00021917,2]
[388754314,1759348267562,-500.0,0.00021917,2]
[388754315,1759348267571,-500.0,0.00021917,2]
[388754316,1759348267580,-440.0,0.00021917,2]
[388754317,1759348267589,-1404.42,0.00021917,2]
[388754318,1759348267598,-500.0,0.00021917,2]
[388754319,1759348267608,-872.07,0.00021917,2]
[388754320,1759348267617,-608.5189169,0.00021917,2]
[388754321,1759348267627,-974.89,0.00021917,2]
[388754322,1759348267636,-732.65,0.00021917,2]
[388754323,1759348267645,-500.0,0.00021917,2]
[388754324,1759348267655,-500.0,0.00021917,2]
[388754325,1759348267665,-812.54,0.00021917,2]
[388754326,1759348267675,-629.04,0.00021917,2]
[388754327,1759348267685,-500.0,0.00021917,2]
[388754328,1759348267695,-227.88,0.00021917,2]
[388754329,1759348267705,-546.41,0.00021917,2]
[388754330,1759348267715,-500.0,0.00021917,2]
[388754331,1759348267725,-500.0,0.00021917,2]
[388754332,1759348267735,-500.0,0.00021917,2]
[388754333,1759348267744,-501.68,0.00021917,2]
[388754334,1759348267753,-502.83,0.00021917,2]
[388754335,1759348267763,-500.0,0.00021917,2]
[388754336,1759348267772,-500.0,0.00021917,2]
[388754337,1759348267782,-1277.46,0.00021917,2]
[388754338,1759348267792,-552.96,0.00021917,2]
[388754339,1759348267802,-500.0,0.00021917,2]
[388754340,1759348267811,-500.0,0.00021917,2]
[388754341,1759348267821,-500.0,0.00021917,2]
[388754342,1759348267831,-500.0,0.00021917,2]
[388754343,1759348267841,-500.0,0.00021917,2]
[388754344,1759348267851,-2223.37,0.00021917,2]
[388754345,1759348267861,-615.96,0.00021917,2]
[388754346,1759348267871,-500.0,0.00021917,2]
[388754347,1759348267880,-698.72,0.00021917,2]
[388754348,1759348267890,-500.0,0.00021917,2]
[388754349,1759348267900,-813.06,0.00021917,2]
[388754350,1759348267910,-725.57,0.00021917,2]
[388754351,1759348267920,-677.05,0.00021917,2]
[388754352,1759348267929,-500.0,0.00021917,2]
[388754353,1759348267939,-500.0,0.00021917,2]
[388754354,1759348267948,-2312.62,0.00021917,2]
[388754355,1759348267958,-500.0,0.00021917,2]
[388754356,1759348267967,-500.0,0.00021917,2]
[388754357,1759348267977,-526.5,0.00021917,2]
[388754358,1759348267987,-500.0,0.00021917,2]
[388754359,1759348267996,-500.0,0.00021917,2]
[388754360,1759348268011,-500.0,0.00021917,2]
[388754361,1759348268021,-500.0,0.00021917,2]
[388754362,1759348268033,-791.91,0.00021917,2]
[388754363,1759348268131,-1388.66,0.00021917,2]
[388754364,1759348268140,-1140.33,0.00021917,2]
[388754365,1759348268150,-500.0,0.00021917,2]
[388754366,1759348268159,-447.14394315,0.00021917,2]
[388754367,1759348268168,-458.0,0.00021918,2]
[388754368,1759348268178,-151.0,0.00021918,2]
[388754369,1759348268188,-276.728226,0.00021918,2]
[388754370,1759348268197,-276.728226,0.00021918,2]
[388754371,1759348268207,-276.728226,0.00021918,2]
[388754372,1759348268217,-276.728226,0.00021918,2]
[388754373,1759348268227,-500.0,0.00021918,2]
[388754374,1759348268238,-400.0,0.00021918,2]
[388754375,1759348268248,-245.0,0.00021918,2]
[388754376,1759348268258,-245.0,0.00021918,2]
[388754377,1759348268267,-245.0,0.00021918,2]
[388754378,1759348268277,-245.0,0.00021918,2]
[388754379,1759348268287,-464.0,0.00021931,2]
[388754380,1759348268296,-2444.69863306,0.00021964,2]
[388754381,1759348268306,-2000.0,0.00021964,2]
[388754382,1759348268316,-1050.24432547,0.00021964,2]
[388754383,1759348268325,-8646.84,0.00022,2]
[388754384,1759348268336,-180.0,0.00022,2]
[388754385,1759348268346,-154.450076,0.00022,4]
[388754386,1759348268355,-288.0,0.00022,2]
[388754387,1759348268365,-4000.0,0.00022,4]
[388754388,1759348268376,-560.0,0.00022083,2]
[388754389,1759348268386,-464.0,0.00022085,2]
[388754390,1759348268396,-256.0,0.0002211,6]
[388754391,1759348268405,-10588.35227838,0.00022144,2]
[388754392,1759348268415,-150.0,0.0002215,2]
[388754393,1759348268425,-2500.0,0.00022164,2]
[388754394,1759348268435,-500.0,0.00022191,2]
[388754395,1759348268444,-352.27,0.00022191,2]
[388754396,1759348268454,-500.0,0.00022191,2]
[388754397,1759348268464,-500.0,0.00022191,2]
[388754398,1759348268474,-500.0,0.00022191,2]
[388754399,1759348268484,-159.933692,0.00022191,7]
[388754400,1759348268494,-153.056476,0.00022191,7]
[388754401,1759348268504,-151.0,0.00022191,7]
[388754402,1759348268513,-165.2,0.00022191,2]
[388754403,1759348268523,-913.55,0.00022191,2]
[388754404,1759348268533,-500.0,0.00022191,2]
[388754405,1759348268543,-500.0,0.00022191,2]
[388754406,1759348268552,-510.51,0.00022191,2]
[388754407,1759348268563,-500.0,0.00022191,2]
[388754408,1759348268572,-500.0,0.00022191,2]
[388754409,1759348268582,-500.0,0.00022191,2]
[388754410,1759348268591,-500.0,0.00022191,2]
[388754411,1759348268601,-781.46,0.00022191,2]
[388754412,1759348268611,-500.0,0.00022191,2]
[388754413,1759348268621,-500.0,0.00022191,2]
[388754414,1759348268631,-834.52,0.00022191,2]
[388754415,1759348268641,-500.0,0.00022191,2]
[388754416,1759348268651,-500.0,0.00022191,2]
[388754417,1759348268662,-500.0,0.00022191,2]
[388754418,1759348268672,-500.0,0.00022191,2]
[388754419,1759348268682,-500.0,0.00022191,2]
[388754420,1759348268692,-500.0,0.00022191,2]
[388754421,1759348268702,-500.0,0.00022191,2]
[388754422,1759348268712,-282.69425049,0.00022191,2]
[388754423,1759348268723,-817.94,0.00022191,2]
[388754424,1759348268733,-568.49,0.00022191,2]
[388754425,1759348268744,-500.0,0.00022191,2]
[388754426,1759348268754,-1197.27,0.00022191,2]
[388754427,1759348268767,-1072.82,0.00022191,2]
[388754428,1759348268777,-1043.95,0.00022191,2]
[388754429,1759348268788,-500.0,0.00022191,2]
[388754430,1759348268799,-500.0,0.00022191,2]
[388754431,1759348268809,-996.21,0.00022191,2]
[388754432,1759348268819,-576.82,0.00022191,2]
[388754433,1759348268829,-2174.11,0.00022191,2]
[388754434,1759348268839,-500.0,0.00022191,2]
[388754435,1759348268849,-1689.91,0.00022191,2]
[388754436,1759348268859,-500.0,0.00022191,2]
[388754437,1759348268869,-500.0,0.00022191,2]
[388754438,1759348268879,-500.0,0.00022191,2]
[388754439,1759348268889,-500.0,0.00022191,2]
[388754440,1759348268899,-4256.27,0.00022191,2]
[388754441,1759348268909,-500.0,0.00022191,2]
[388754442,1759348268920,-598.05,0.00022191,2]
[388754443,1759348268930,-500.0,0.00022191,2]
[388754444,1759348268941,-500.0,0.00022191,2]
[388754445,1759348268952,-956.54,0.00022191,2]
[388754446,1759348268963,-487.65,0.00022191,2]
[388754447,1759348268976,-500.0,0.00022191,2]
[388754448,1759348268987,-1404.42,0.00022191,2]
[388754449,1759348268997,-498.05,0.00022191,2]
[388754450,1759348269012,-872.07,0.00022191,2]
[388754451,1759348269023,-974.89,0.00022191,2]
[388754452,1759348269034,-732.65,0.00022191,2]
[388754453,1759348269047,-500.0,0.00022191,2]
[388754454,1759348269060,-500.0,0.00022191,2]
[388754455,1759348269073,-812.54,0.00022191,2]
[388754456,1759348269085,-629.04,0.00022191,2]
[388754457,1759348269097,-500.0,0.00022191,2]
[388754458,1759348269109,-546.41,0.00022191,2]
[388754459,1759348269120,-500.0,0.00022191,2]
[388754460,1759348269131,-496.56,0.00022191,2]
[388754461,1759348269143,-360.41854206,0.00022191,2]
[388754462,1759348269154,-501.68,0.00022191,2]
[388754463,1759348269164,-502.83,0.00022191,2]
[388754464,1759348269175,-500.0,0.00022191,2]
[388754465,1759348269187,-500.0,0.00022191,2]
[388754466,1759348269198,-1277.46,0.00022191,2]
[388754467,1759348269209,-552.96,0.00022191,2]
[388754468,1759348269220,-500.0,0.00022191,2]
[388754469,1759348269233,-500.0,0.00022191,2]
[388754470,1759348269245,-500.0,0.00022191,2]
[388754471,1759348269256,-500.0,0.00022191,2]